fUSD/lending_fUSD_20241109
["ID","MTS","AMOUNT","RATE_DAILY","PERIOD"]
[341747019,1731186760487,-420.0,0.0003897,30]
[341747020,1731186760512,-420.0,0.0003898,30]
[341747021,1731186760537,-420.0,0.0003898,30]
[341747022,1731186760563,-420.0,0.0003898,30]
[341747023,1731186760590,-425.69,0.0003898,30]
[341747024,1731186760615,-420.0,0.0003899,30]
[341747025,1731186760641,-420.0,0.0003899,30]
[341747026,1731186760664,-420.0,0.0003899,30]
[341747027,1731186760689,-420.0,0.0003899,30]
[341747028,1731186760715,-1800.0,0.00039,40]
[341747029,1731186760740,-850.0,0.00039,120]
[341747030,1731186760764,-56779.0,0.00039,30]
[341747031,1731186760790,-2000.0,0.00039207,120]
[341747032,1731186760815,-150.0,0.00039247,120]
[341747033,1731186760839,-5004.92974,0.00039254,30]
[341747034,1731186760864,-150.0,0.00039386,120]
[341747035,1731186760889,-150.0,0.00039388,120]
[341747036,1731186760912,-575.81553542,0.000394,30]
[341747037,1731186760940,-151.0,0.00039452,120]
[341747038,1731186760966,-576.42,0.00039579,30]
[341747039,1731186760990,-576.42,0.00039579,30]
[341747040,1731186761016,-576.42,0.00039579,30]
[341747041,1731186761040,-576.42,0.00039579,30]
[341747042,1731186761065,-999.0,0.00039726,120]
[341747043,1731186761089,-500.0,0.00039794,60]
[341747044,1731186761114,-500.0,0.00039794,60]
[341747045,1731186761137,-1420.35063191,0.000398,30]
[341747046,1731186761160,-210.0,0.0003981,30]
[341747047,1731186761184,-209.0,0.0003981,30]
[341747048,1731186761208,-150.0,0.00039829,120]
[341747049,1731186761230,-576.42,0.00039852,30]
[341747050,1731186761255,-576.42,0.00039852,30]
[341747051,1731186761281,-50000.0,0.0004,40]
[341747052,1731186761306,-301.22686313,0.0004,30]
[341747053,1731186761329,-191.57162166,0.0004,30]
[341747054,1731186761352,-954.67492881,0.0004,30]
[341747055,1731186761375,-1063.44799109,0.0004,32]
[341747056,1731186761402,-1886.16570777,0.0004,120]
[341747057,1731186761427,-500.0,0.0004,120]
[341747058,1731186761449,-4755.49476973,0.0004,120]
[341747059,1731186761473,-216.0,0.0004,120]
[341747060,1731186761501,-178819.20567505,0.0004,30]
[341747061,1731186826138,-5000000.0,0.00041141,30]
[341747062,1731186903924,3005.39197744,0.00027,120]
[341747063,1731186904690,186727.0,0.00027,60]
[341747064,1731186906569,209.813766,0.00012084,2]
[341747065,1731186906590,150.0,0.00012084,2]
[341747066,1731186906612,1047.196234,0.00012084,2]
[341747067,1731186970627,800.0,0.00026986,120]
[341747069,1731187093588,800.0,0.00026986,120]
[341747070,1731187109948,175.0,5.236e-05,2]
[341747071,1731187169588,187.0,5.236e-05,2]
[341747072,1731187202972,150.0,5.236e-05,2]
[341747073,1731187203172,150.0,5.236e-05,2]
[341747074,1731187203365,150.0,5.236e-05,2]
[341747075,1731187203565,150.0,5.236e-05,2]
[341747076,1731187203835,150.0,5.236e-05,2]
[341747077,1731187204018,150.0,5.236e-05,2]
[341747078,1731187204225,150.0,5.236e-05,2]
[341747079,1731187204456,263.73877583,5.236e-05,2]
[341747080,1731187216538,1380.54705924,0.00014999,5]
[341747081,1731187223111,200.0,0.00027,60]
[341747082,1731187230762,190.0,5.236e-05,2]
[341747083,1731187290351,188.0,5.236e-05,2]
[341747084,1731187350688,167.0,5.236e-05,2]
[341747086,1731187518646,709.77,0.0001449,3]
[341747087,1731187519455,1404.06499017,9e-05,2]
[341747088,1731187519481,5289.87386632,9e-05,2]
[341747089,1731187536164,4710.12613368,9e-05,2]
[341747090,1731187536185,10000.0,9e-05,2]
[341747091,1731187536207,5047.49161702,9e-05,2]
[341747094,1731187645548,247.09043485,0.000101,2]
[341747095,1731187646371,800.0,0.000136,4]
[341747096,1731187648539,1600.0,0.000137,5]
[341747097,1731187650642,2400.0,0.000138,5]
[341747098,1731187652997,3300.0,0.000139,5]
[341747099,1731187653153,1347.16,0.0001104,2]
[341747100,1731187654881,4100.0,0.000143,5]
[341747101,1731187657000,800.0,0.000144,5]
[341747102,1731187659184,800.0,0.000145,5]
[341747103,1731187661241,800.0,0.000146,5]
[341747104,1731187663355,800.0,0.000147,5]
[341747105,1731187665465,1100.0,0.000148,5]
[341747107,1731187683812,28037.18262865,0.000145,3]
[341747108,1731187683837,28556.43262865,0.000145,3]
[341747109,1731187683859,28405.57262865,0.000145,3]
[341747110,1731187683882,28107.71262865,0.000145,3]
[341747111,1731187683906,24217.24229767,0.000145,3]
[341747112,1731187693194,7640.17994629,0.00013,4]
[341747119,1731187772682,966.36,0.00027,60]
[341747120,1731187780848,966.36,0.00027,60]
[341747121,1731187790022,966.36,0.00027,60]
[341747122,1731187796082,966.36,0.00027,60]
[341747123,1731187803610,966.36,0.00027,60]
[341747124,1731187810649,966.36,0.00027,60]
[341747141,1731187819184,966.36,0.00027,60]
[341747142,1731187826037,966.36,0.00027,60]
[341747154,1731187831673,-4739.340145,0.0001268,2]
[341747155,1731187831684,-250.0,0.00012744,2]
[341747156,1731187831694,-2751.0,0.00012835,2]
[341747157,1731187831705,-173.70196422,0.00012886,2]
[341747158,1731187831716,-491.86427854,0.000129,2]
[341747159,1731187831727,-250.0,0.00012936,2]
[341747160,1731187831737,-300.0,0.00012937,2]
[341747161,1731187831747,-8693.21,0.00012938,2]
[341747162,1731187831762,-664.64,0.00012952,2]
[341747163,1731187831772,-3901.25,0.00012952,2]
[341747164,1731187831783,-173.7019642,0.0001297,2]
[341747165,1731187831793,-161.84,0.00013,2]
[341747166,1731187831803,-953.59,0.00013,2]
[341747167,1731187831815,-1267.67,0.00013045,2]
[341747168,1731187831824,-150.0,0.00013049,2]
[341747169,1731187831835,-4313.29315514,0.0001305,2]
[341747170,1731187831847,-6039.03,0.0001305,2]
[341747171,1731187831857,-25718.6429387,0.0001305,2]
[341747172,1731187831964,-1878.52290362,0.0001305,2]
[341747173,1731187831975,-1412.39714948,0.0001305,2]
[341747174,1731187832027,-1102.96706954,0.0001305,2]
[341747175,1731187832039,-3085.37750934,0.0001305,2]
[341747176,1731187832064,-19646.76437268,0.0001305,2]
[341747177,1731187832075,-45.94805664,0.0001305,2]
[341747178,1731187832085,-999.99,0.0001305,2]
[341747179,1731187832095,-2246.15,0.0001305,2]
[341747180,1731187832105,-200.0,0.00013052,2]
[341747181,1731187832114,-625.34,0.00013052,2]
[341747182,1731187832123,-173.7019642,0.00013053,2]
[341747183,1731187832133,-168.82806669,0.00013153,2]
[341747184,1731187832142,-939.22,0.00013213,2]
[341747185,1731187832152,-261.63,0.00013232,2]
[341747186,1731187832161,-1347.16,0.00013304,2]
[341747187,1731187832171,-500.0,0.00013387,2]
[341747188,1731187832180,-161.56,0.00013413,2]
[341747189,1731187832190,-23900.0,0.00013454,2]
[341747190,1731187832199,-180.53,0.00013469,2]
[341747191,1731187832209,-664.64,0.00013599,2]
[341747192,1731187832219,-1000.0,0.00013618,2]
[341747193,1731187832228,-2820.36,0.00013699,2]
[341747194,1731187832239,-500.0,0.00013699,2]
[341747195,1731187832248,-810.88,0.00013725,2]
[341747196,1731187832257,-163.57,0.00014035,2]
[341747197,1731187832267,-1668.0,0.00014069,2]
[341747198,1731187832276,-538.37,0.00014086,2]
[341747199,1731187832286,-255.0,0.00014158,2]
[341747200,1731187832296,-420.0,0.00014188,2]
[341747201,1731187832305,-762.33,0.00014241,2]
[341747202,1731187832314,-664.64,0.00014247,2]
[341747203,1731187832323,-150.0,0.00014272,2]
[341747204,1731187832333,-762.33,0.00014341,2]
[341747205,1731187832343,-506.0336739,0.00014345,2]
[341747206,1731187832353,-362.09,0.00014378,2]
[341747207,1731187832363,-150.0,0.00014378,2]
[341747208,1731187832372,-150.0,0.00014378,2]
[341747209,1731187832383,-362.09,0.00014378,2]
[341747210,1731187832392,-362.09,0.00014378,2]
[341747211,1731187832401,-49.85613857,0.00014378,2]
[341747212,1731187832435,-312.23386143,0.00014378,2]
[341747213,1731187832445,-605.00107924,0.0001439,2]
[341747214,1731187832455,-4505.9500848,0.00014399,2]
[341747215,1731187833337,221.32,0.00027,60]
[341747216,1731187837769,-363.50002513,0.00013212,2]
[341747217,1731187837830,-136.49997487,0.00013212,2]
[341747218,1731187837839,-497.68394242,0.00013212,2]
[341747219,1731187837850,-120.41774211,0.00013212,2]
[341747220,1731187837862,-379.58225789,0.00013212,2]
[341747221,1731187837871,-500.0,0.00013212,2]
[341747222,1731187837880,-500.0,0.00013212,2]
[341747223,1731187837890,-453.80202147,0.00013212,2]
[341747224,1731187837899,-243.14219367,0.00013212,2]
[341747225,1731187837908,-500.0,0.00013212,2]
[341747226,1731187837918,-513.23901521,0.00013212,2]
[341747227,1731187837927,-500.0,0.00013212,2]
[341747228,1731187837936,-500.0,0.00013212,2]
[341747229,1731187837945,-500.0,0.00013212,2]
[341747230,1731187837955,-88.06337201,0.00013212,2]
[341747231,1731187838132,-411.93662799,0.00013212,2]
[341747232,1731187838142,-500.0,0.00013212,2]
[341747233,1731187838151,-500.0,0.00013212,2]
[341747234,1731187838161,-10834.92810762,0.00014299,2]
[341747235,1731187838173,-2281.212458,0.00014299,2]
[341747402,1731187839872,-1515.82323386,0.00014299,2]
[341747404,1731187839882,-2108.87876214,0.00014366,2]
[341747406,1731187839893,-1815.33,0.00014366,2]
[341747418,1731187839996,-4020.51682233,0.00014366,2]
[341747420,1731187840007,-442.23744591,0.00014366,2]
[341747597,1731187845852,-3331.7,0.000143,2]
[341747598,1731187845863,-6245.0007691,0.00014366,2]
[341747599,1731187845873,-1507.0815152,0.00014399,2]
[341747600,1731187845883,-155.45469238,0.000144,2]
[341747601,1731187845893,-5370.6579,0.000144,2]
[341747603,1731187846183,-21663.958,0.000144,2]
[341747604,1731187846194,-3077.8386,0.000144,2]
[341747605,1731187846204,-16527.30852309,0.000144,2]
[341747606,1731187854981,966.36,0.00027,60]
[341747607,1731187861932,463.85,0.00027,60]
[341747608,1731187949885,800.0,0.000136,4]
[341747609,1731187951989,1700.0,0.000137,5]
[341747610,1731187954997,2500.0,0.000138,5]
[341747611,1731187956226,3400.0,0.000139,5]
[341747612,1731187958324,4200.0,0.000143,5]
[341747613,1731187960418,800.0,0.000144,5]
[341747614,1731187962533,800.0,0.000145,5]
[341747615,1731187964670,800.0,0.000146,5]
[341747616,1731187967110,800.0,0.000147,5]
[341747617,1731187969075,1200.0,0.000148,5]
[341747619,1731188352562,800.0,0.00026986,120]
[341747620,1731188419484,1292.33,0.00011259,2]
[341747622,1731188553096,709.77,0.00010959,2]
[341747623,1731188576789,-612.3,0.0001286,2]
[341747624,1731188576813,-250.0,0.00012879,2]
[341747625,1731188576835,-1359.79131075,0.00013043,2]
[341747626,1731188576858,-164.31,0.00013072,2]
[341747627,1731188576879,-1359.79131073,0.00013078,2]
[341747628,1731188576899,-1359.79131073,0.00013112,2]
[341747629,1731188576921,-385.13,0.00013143,2]
[341747630,1731188576942,-1490.12127851,0.00013212,2]
[341747631,1731188576965,-160.0,0.00013361,2]
[341747632,1731188576986,-300.0,0.00013396,2]
[341747633,1731188577008,-23900.0,0.00013397,2]
[341747634,1731188577029,-1000.0,0.00013488,2]
[341747635,1731188577050,-500.0,0.00013519,2]
[341747636,1731188577071,-1292.33,0.00013522,2]
[341747637,1731188577098,-1582.43478928,0.00013557,2]
[341747638,1731188644333,800.0,0.00026986,120]
[341747639,1731188713098,519.03,0.00026986,120]
[341747641,1731188893662,800.0,0.00026986,120]
[341747660,1731189031920,-593.96,0.0001268,2]
[341747661,1731189031930,-462.69,0.00012841,2]
[341747662,1731189031940,-1000.0,0.00012938,2]
[341747663,1731189031949,-300.0,0.00012949,2]
[341747664,1731189031959,-23900.0,0.0001295,2]
[341747665,1731189031969,-1428.64,0.00013029,2]
[341747666,1731189031978,-633.83,0.00013155,2]
[341747667,1731189031988,-5559.0,0.00013422,2]
[341747668,1731189031998,-300.0,0.00013549,2]
[341747669,1731189032007,-150.0,0.00013549,2]
[341747670,1731189032016,-786.2575,0.0001355,2]
[341747671,1731189032026,-4629.0973,0.0001355,2]
[341747672,1731189032036,-816.36420001,0.0001355,2]
[341747673,1731189032068,-3203.92349999,0.0001355,2]
[341747674,1731189032079,-1944.75,0.0001355,2]
[341747675,1731189032088,-474.37,0.0001355,2]
[341747676,1731189032098,-14592.39812411,0.0001355,2]
[341747677,1731189032107,-736.01,0.0001355,2]
[341747678,1731189032117,-155.52,0.00013582,2]
[341747679,1731189032126,-1091.79,0.00013582,2]
[341747680,1731189032135,-150.99,0.00013582,2]
[341747681,1731189032144,-9999.99,0.00013582,2]
[341747682,1731189032154,-16840.64,0.00013582,2]
[341747683,1731189032164,-9999.99,0.00013582,2]
[341747684,1731189032174,-150.0,0.000136,2]
[341747685,1731189032184,-150.0,0.000136,2]
[341747686,1731189032193,-427.88,0.000136,2]
[341747687,1731189032203,-432.91,0.000136,2]
[341747688,1731189032213,-762.33,0.000136,2]
[341747689,1731189032223,-155.52,0.00013616,2]
[341747690,1731189032234,-1000.0,0.00013639,2]
[341747691,1731189032243,-189.87038384,0.00013639,2]
[341747692,1731189032253,-500.0,0.00013639,2]
[341747693,1731189032262,-161.07678162,0.00013639,2]
[341747694,1731189032273,-500.0,0.00013639,2]
[341747695,1731189032283,-500.0,0.00013639,2]
[341747696,1731189032295,-355.68107797,0.00013639,2]
[341747697,1731189032304,-1987.95285852,0.00013639,2]
[341747698,1731189032314,-112309.29702633,0.0001364,2]
[341747699,1731189032324,-155.52,0.0001365,2]
[341747700,1731189032334,-362.09,0.00013656,2]
[341747701,1731189032343,-155.52,0.00013684,2]
[341747702,1731189032352,-724.0,0.000137,2]
[341747703,1731189032606,-14592.39812407,0.000137,2]
[341747704,1731189032620,-155.52,0.00013718,2]
[341747705,1731189032630,-362.09,0.00013756,2]
[341747706,1731189032640,-150.0,0.000138,2]
[341747707,1731189032649,-150.0,0.000138,2]
[341747708,1731189032658,-150.0,0.000138,2]
[341747709,1731189032668,-394.06,0.000138,2]
[341747710,1731189032677,-150.0,0.000138,2]
[341747711,1731189032686,-172.8,0.000138,2]
[341747712,1731189032696,-362.09,0.000138,2]
[341747713,1731189032705,-362.09,0.000138,2]
[341747714,1731189032715,-362.09,0.000138,2]
[341747715,1731189032724,-385.13,0.000138,2]
[341747716,1731189032734,-14592.39812407,0.0001385,2]
[341747717,1731189032743,-432.91,0.00013856,2]
[341747718,1731189032752,-183.54,0.00013856,2]
[341747719,1731189032762,-432.91,0.00013856,2]
[341747720,1731189032774,-362.09,0.00013856,2]
[341747721,1731189032783,-150.0,0.00013936,2]
[341747722,1731189032793,-762.33,0.00014,2]
[341747723,1731189032802,-150.0,0.00014,2]
[341747724,1731189032811,-150.0,0.00014,2]
[341747725,1731189032823,-362.09,0.00014,2]
[341747726,1731189032833,-14592.39812407,0.00014,2]
[341747727,1731189032842,-378.16,0.00014104,2]
[341747728,1731189032854,-381.26787788,0.00014111,2]
[341747729,1731189032864,-14592.39812407,0.0001415,2]
[341747730,1731189032873,-1000.0,0.000142,2]
[341747731,1731189032883,-420.0,0.00014202,2]
[341747732,1731189032892,-59488.9109,0.000143,2]
[341747733,1731189032902,-14592.39812407,0.000143,2]
[341747734,1731189032911,-1096.4477,0.00014333,2]
[341747735,1731189032921,-389.6455,0.00014341,2]
[341747736,1731189032931,-426.31,0.00014355,2]
[341747737,1731189032941,-164.31,0.00014379,2]
[341747738,1731189032951,-14721.2508,0.00014398,2]
[341747739,1731189032960,-174.40239375,0.00014399,2]
[341747740,1731189032970,-500.0,0.00014399,2]
[341747741,1731189032979,-500.0,0.00014399,2]
[341747742,1731189032988,-500.0,0.00014399,2]
[341747743,1731189032998,-500.0,0.00014399,2]
[341747744,1731189033007,-500.0,0.00014399,2]
[341747745,1731189033016,-500.0,0.00014399,2]
[341747746,1731189033026,-258.36373692,0.00014399,2]
[341747747,1731189033035,-500.0,0.00014399,2]
[341747748,1731189033045,-500.0,0.00014399,2]
[341747749,1731189033055,-630.85461585,0.00014399,2]
[341747750,1731189033064,-500.0,0.00014399,2]
[341747751,1731189033078,-500.0,0.00014399,2]
[341747752,1731189033088,-78756.77327691,0.000144,2]
[341747753,1731189033097,-500.0,0.000144,2]
[341747754,1731189033106,-41341.7756,0.000144,2]
[341747755,1731189033116,-1000.0,0.000144,2]
[341747756,1731189033126,-5294.5442,0.000144,2]
[341747757,1731189033137,-1700.6394,0.000144,2]
[341747758,1731189033146,-193.86955363,0.000144,2]
[341747759,1731189033155,-169.89254742,0.000144,2]
[341747760,1731189033165,-159.1240443,0.000144,2]
[341747761,1731189033174,-186.60909478,0.000144,2]
[341747762,1731189033184,-1000.0,0.000144,2]
[341747763,1731189033193,-220.52239436,0.000144,2]
[341747764,1731189033203,-6264.7780972,0.000144,2]
[341747765,1731189033212,-234.2150263,0.000144,2]
[341747766,1731189033223,-462.69,0.00014446,2]
[341747767,1731189033233,-14592.39812407,0.0001445,2]
[341747768,1731189033242,-385.13,0.00014457,2]
[341747769,1731189033252,-500.0,0.00014473,2]
[341747770,1731189033261,-500.0,0.00014473,2]
[341747771,1731189033271,-161.77565456,0.00014473,2]
[341747772,1731189033280,-500.0,0.00014473,2]
[341747773,1731189033290,-162.76380884,0.00014473,2]
[341747774,1731189033299,-500.0,0.00014473,2]
[341747775,1731189033309,-502.11901539,0.00014473,2]
[341747776,1731189033318,-357.98833217,0.00014473,2]
[341747777,1731189033329,-160.383302,0.00014473,2]
[341747778,1731189033339,-500.0,0.00014473,2]
[341747779,1731189033348,-301.67861034,0.0001449,2]
[341747780,1731189033358,-301.67861034,0.0001449,2]
[341747781,1731189033367,-301.67861034,0.0001449,2]
[341747782,1731189033377,-3171.111006,0.00014498,2]
[341747783,1731189033386,-150.111007,0.00014498,2]
[341747784,1731189033396,-696.15,0.00014499,2]
[341747785,1731189033405,-607216.85119955,0.000145,2]
[341747786,1731189033557,-36107.67271017,0.000145,2]
[341747787,1731189033581,-8820.3597769,0.000145,2]
[341747788,1731189033593,-28994.32392118,0.000145,2]
[341747789,1731189033608,-61466.76435971,0.000145,2]
[341747790,1731189033710,-33927.62949469,0.000145,2]
[341747791,1731189033722,-13439.27129802,0.000145,2]
[341747809,1731189038061,-188.50037462,0.00014473,2]
[341747810,1731189038070,-81173.34242457,0.000145,2]
[341747811,1731189038082,-645.01016873,0.000145,2]
[341747812,1731189038103,-323.66932997,0.000145,2]
[341747813,1731189038114,-4812.16110412,0.000145,2]
[341747816,1731189038274,-37858.60156058,0.000145,2]
[341747925,1731189039985,-450.0,0.00014397,2]
[341747926,1731189039995,-202.17140742,0.00014397,2]
[341747927,1731189040004,-1593.35484258,0.000145,2]
[341747928,1731189040023,-3491.3688,0.000145,2]
[341747929,1731189040035,-1803.90703459,0.000145,2]
[341747930,1731189040054,-40535.44543927,0.000145,2]
[341747936,1731189040358,-1705.16147454,0.000145,2]
[341747937,1731189040370,-1231.22216001,0.000145,2]
[341747938,1731189040382,-468.16249031,0.000145,2]
[341747945,1731189042977,-436.781469,0.000144,2]
[341747946,1731189042987,-1228.94800028,0.000145,2]
[341747947,1731189043073,-50130.70468253,0.000145,2]
[341747948,1731189043131,-1540.65,0.000145,2]
[341747949,1731189043143,-311.38828405,0.000145,2]
[341747957,1731189045990,-172.43780871,0.000144,2]
[341747958,1731189046000,-7467.69984671,0.000145,2]
[341747959,1731189046036,-19696.103849,0.000145,2]
[341747960,1731189046123,-1954.07022839,0.000145,2]
[341747961,1731189046267,-888.54594618,0.000145,2]
[341747962,1731189046295,-611.69175288,0.000145,2]
[341747963,1731189099185,1163.09,0.0001188,2]
[341747969,1731189794340,193.06794813,0.00011165,2]
[341747970,1731189794362,911.86205187,0.00011165,2]
[341747971,1731189871459,1915.80120372,0.00027,60]
[341747972,1731189892742,-1805.7966193,0.00013015,2]
[341747973,1731189892765,-1000.0,0.00013115,2]
[341747974,1731189892789,-941.46,0.00013115,2]
[341747975,1731189892816,-155.43,0.00013135,2]
[341747976,1731189892841,-164.31,0.00013192,2]
[341747977,1731189892866,-2285.717988,0.00013242,2]
[341747978,1731189892889,-394.38,0.00013243,2]
[341747979,1731189892912,-1104.93,0.00013429,2]
[341747980,1731189892932,-500.0,0.0001344,2]
[341747981,1731189892954,-500.0,0.0001344,2]
[341747982,1731189892976,-500.0,0.0001344,2]
[341747983,1731189892998,-500.0,0.0001344,2]
[341747984,1731189893023,-448.30768918,0.0001344,2]
[341747985,1731189893046,-5869.09118167,0.0001344,2]
[341747986,1731189893072,-150.0,0.00013538,2]
[341747987,1731189893100,-500.0,0.00013539,2]
[341747988,1731189893122,-500.0,0.00013539,2]
[341747989,1731189893145,-508.52089793,0.00013539,2]
[341747990,1731189893168,-500.0,0.00013539,2]
[341747991,1731189893192,-500.0,0.00013539,2]
[341747992,1731189893216,-500.0,0.00013539,2]
[341747993,1731189893248,-500.0,0.00013539,2]
[341747994,1731189893275,-500.0,0.00013539,2]
[341747995,1731189893300,-500.0,0.00013539,2]
[341747996,1731189893322,-278.89568235,0.00013539,2]
[341747997,1731189893345,-500.0,0.00013539,2]
[341747998,1731189893368,-500.0,0.00013539,2]
[341747999,1731189893392,-500.0,0.00013539,2]
[341748000,1731189893416,-500.0,0.00013539,2]
[341748001,1731189893438,-500.0,0.00013539,2]
[341748002,1731189893461,-500.0,0.00013539,2]
[341748003,1731189893484,-300.0,0.00013539,2]
[341748004,1731189893506,-500.0,0.00013539,2]
[341748005,1731189893530,-150.0,0.00013539,2]
[341748006,1731189893553,-150.0,0.00013539,2]
[341748007,1731189893575,-360.4451,0.0001354,2]
[341748008,1731189893598,-6289.0,0.0001354,2]
[341748009,1731189893621,-8143.71484157,0.0001354,2]
[341748042,1731190232068,-220.38,0.00012996,2]
[341748043,1731190232078,-148.62,0.00013087,2]
[341748044,1731190232171,-17.67665263,0.00013087,2]
[341748045,1731190232180,-300.0,0.00013101,2]
[341748046,1731190232190,-11764.45320267,0.00013102,2]
[341748047,1731190232201,-654.08393192,0.00013102,2]
[341748048,1731190232212,-351.899999,0.00013102,2]
[341748049,1731190232223,-406.46096392,0.00013102,2]
[341748050,1731190232363,-1193.0857456,0.00013102,2]
[341748051,1731190232375,-9530.01615689,0.00013102,2]
[341748053,1731190232384,-316.91,0.00013143,2]
[341748055,1731190232394,-2682.01,0.00013187,2]
[341748057,1731190232404,-189.84,0.00013397,2]
[341748059,1731190232413,-463.35440342,0.0001344,2]
[341748061,1731190232422,-250.0,0.00013524,2]
[341748062,1731190232432,-261.83406558,0.00013539,2]
[341748064,1731190232441,-500.0,0.00013539,2]
[341748066,1731190232450,-500.0,0.00013539,2]
[341748067,1731190232459,-500.0,0.00013539,2]
[341748068,1731190232468,-500.0,0.00013539,2]
[341748070,1731190232478,-500.0,0.00013539,2]
[341748071,1731190232487,-500.0,0.00013539,2]
[341748072,1731190232496,-500.0,0.00013539,2]
[341748073,1731190232505,-500.0,0.00013539,2]
[341748074,1731190232514,-500.0,0.00013539,2]
[341748075,1731190232525,-500.0,0.00013539,2]
[341748076,1731190232535,-500.0,0.00013539,2]
[341748077,1731190232544,-215.22697765,0.00013539,2]
[341748078,1731190232554,-150.0,0.00013539,2]
[341748079,1731190232563,-1000.0,0.00013539,2]
[341748080,1731190232572,-150.99,0.00013539,2]
[341748081,1731190232581,-4404.28,0.00013539,2]
[341748082,1731190232590,-72056.38872105,0.0001354,2]
[341748083,1731190232602,-100338.91170614,0.0001354,2]
[341748084,1731190232613,-2299.76847704,0.0001354,2]
[341748085,1731190232636,-62161.2162542,0.0001354,2]
[341748086,1731190232645,-100000.0,0.0001354,2]
[341748087,1731190232654,-573.8441,0.0001354,2]
[341748088,1731190232664,-4107.1976,0.0001354,2]
[341748089,1731190232673,-1000.0,0.0001355,2]
[341748090,1731190232683,-5869.09118161,0.00013602,2]
[341748091,1731190232692,-463.3544034,0.00013649,2]
[341748092,1731190232702,-500.0,0.000137,2]
[341748093,1731190232711,-5869.09118161,0.00013764,2]
[341748094,1731190232720,-161.84,0.00013789,2]
[341748095,1731190232729,-463.3544034,0.00013857,2]
[341748096,1731190232738,-5869.09118161,0.00013927,2]
[341748097,1731190232747,-381.26787788,0.00013976,2]
[341748098,1731190232756,-463.3544034,0.00014066,2]
[341748099,1731190232765,-189.84,0.00014067,2]
[341748100,1731190232778,-5869.09118161,0.00014089,2]
[341748101,1731190232787,-1000.0,0.000142,2]
[341748102,1731190232796,-5869.09118161,0.00014251,2]
[341748103,1731190232805,-463.3544034,0.00014274,2]
[341748104,1731190232814,-1000.0,0.000143,2]
[341748105,1731190232824,-17246.28159781,0.0001436,2]
[341748106,1731190232833,-420.0,0.00014366,2]
[341748107,1731190232841,-150.0,0.00014383,2]
[341748108,1731190232851,-164.33035333,0.000144,2]
[341748109,1731190232861,-1196.535,0.000144,2]
[341748110,1731190232870,-198.3584,0.000144,2]
[341748111,1731190232879,-192.0425426,0.000144,2]
[341748112,1731190232887,-172.71315067,0.000144,2]
[341748113,1731190232897,-5869.09118161,0.00014413,2]
[341748114,1731190232906,-463.3544034,0.00014483,2]
[341748115,1731190232915,-192.04254258,0.00014483,2]
[341748116,1731190232924,-301.2125543,0.00014498,2]
[341748117,1731190232934,-92620.89654254,0.000145,2]
[341748118,1731190232955,-1800.0,0.000145,2]
[341748119,1731190232982,-739.56713051,0.000145,2]
[341748127,1731190238034,-2322.0744563,0.000145,2]
[341748129,1731190238134,-1808.38775576,0.000145,2]
[341748130,1731190238145,-1800.83630289,0.000145,2]
[341748134,1731190238539,-2870.12155462,0.000145,2]
[341748136,1731190238551,-5006.05885997,0.000145,2]